bitfinex/quotes_ETHUSD_20251019
["timestamp","ask_amount","ask_price","bid_price","bid_amount"]
[1760862974609,0.002,3879.7,3878.2,3.2121158]
[1760862974814,0.002,3879.7,3878.2,12.82195511]
[1760862975144,0.002,3879.7,3878.2,13.27195511]
[1760862975708,0.002,3879.7,3878.2,4.7565158]
[1760862976026,0.099,3879.3,3878.2,8.14561565]
[1760862976346,0.2278,3879.3,3878.2,8.27441565]
[1760862976541,4.89283931,3879.7,3878.2,1.728]
[1760862976712,0.099,3879.0,3878.2,4.3065158]
[1760862977054,0.099,3878.6,3878.2,1.728]
[1760862978134,0.002,3878.7,3878.2,1.728]
[1760862978339,0.002,3878.7,3878.2,4.3065158]
[1760862978915,0.002,3878.7,3878.2,4.7565158]
[1760862979133,0.002,3878.7,3878.2,5.9791154]
[1760862979353,0.002,3878.7,3878.2,5.5291154]
[1760862979540,0.002,3878.7,3878.2,4.3065158]
[1760862982645,0.101,3878.7,3878.2,1.728]
[1760862982829,0.101,3878.3,3877.0,0.45]
[1760862983028,0.1471,3878.2,3876.8,4.89083931]
[1760862983241,0.1471,3878.2,3877.5,2.57893097]
[1760862983449,0.0995,3878.1,3876.6,2.98]
[1760862983632,0.0995,3878.0,3876.5,2.80144296]
[1760862983834,0.61324393,3877.9,3876.5,2.57958571]
[1760862984032,0.0995,3877.8,3876.3,0.2218]
[1760862984219,0.51374393,3877.9,3876.4,2.57965142]
[1760862984220,4.89083931,3877.6,3876.4,2.57965142]
[1760862984424,12.429811,3877.5,3875.6,2.979]
[1760862984719,4.89083931,3877.6,3875.4,2.978]
[1760862984720,0.0995,3877.4,3875.4,2.978]
[1760862984967,0.0995,3877.3,3876.2,1.728]
[1760862985145,0.49903393,3877.4,3875.5,0.85406393]
[1760862985479,0.0995,3877.2,3876.2,1.728]
[1760862985825,0.49903393,3877.4,3876.2,1.728]
[1760862986051,0.0995,3877.1,3876.2,1.728]
[1760862986576,0.1288,3876.7,3876.2,1.728]
[1760862986725,0.0995,3877.1,3875.5,0.85406393]
[1760862986726,0.0995,3876.6,3875.5,0.85406393]
[1760862987048,0.1288,3876.2,3875.6,0.1288]
[1760862987662,0.2803,3876.1,3875.2,2.58050712]
[1760862987825,0.1288,3875.8,3875.3,1.728]
[1760862988027,0.1288,3875.8,3875.3,2.58043143]
[1760862988736,0.1288,3875.8,3875.3,1.728]
[1760862989133,0.1288,3875.8,3875.3,2.58044473]
[1760862989539,0.1288,3875.8,3875.5,2.58024866]
[1760862989749,0.1288,3875.8,3875.1,2.0786]
[1760862989961,0.1288,3875.8,3875.2,0.20786]
[1760862990331,0.1832,3875.3,3874.8,2.58077167]
[1760862990533,0.312,3875.3,3874.6,0.1288]
[1760862991341,0.312,3875.3,3874.8,1.728]
[1760862991550,0.312,3875.3,3874.9,2.58071176]
[1760862991744,0.1823,3875.8,3875.2,2.5804577]
[1760862991945,0.1288,3875.5,3875.2,2.5804577]
[1760862992352,0.1288,3875.5,3875.1,2.58057077]
[1760862992545,0.1288,3875.5,3875.3,2.58038353]
[1760862992752,0.1288,3875.5,3875.4,2.58037879]
[1760862993168,0.1288,3875.5,3875.3,2.58043407]
[1760862993365,0.1288,3875.5,3875.4,2.58037879]
[1760862993661,0.1288,3875.6,3875.2,0.35042064]
[1760862993868,0.1288,3875.6,3875.1,1.728]
[1760862994064,0.1288,3875.6,3875.1,2.58051327]
[1760862994270,0.1288,3875.6,3875.0,1.728]
[1760862994271,0.1288,3875.6,3875.2,2.5805084]
[1760862995257,0.1288,3875.6,3875.0,4.30863244]
[1760862995258,0.1288,3875.6,3875.1,2.58056906]
[1760862995769,0.1288,3875.6,3874.9,2.70949333]
[1760862995972,0.1288,3875.6,3875.0,0.31375933]
[1760862996170,0.1288,3875.6,3875.5,2.58031221]
[1760862996956,0.1288,3875.6,3875.3,2.58043086]
[1760862997161,0.1288,3875.6,3875.4,2.58035799]
[1760862997661,0.1288,3875.6,3875.5,2.58031221]
[1760862998213,0.1288,3875.6,3875.4,0.4281]
[1760862998594,0.04497085,3876.5,3875.5,3.00841221]
[1760862998769,0.04497085,3876.5,3875.1,0.2152]
[1760862998770,0.1288,3875.8,3875.6,3.87]
[1760862999177,0.1288,3875.8,3875.6,6.45023988]
[1760862999377,0.1288,3875.8,3875.6,6.87833988]
[1760862999696,0.1832,3876.7,3875.6,6.87833988]
[1760862999697,0.1832,3876.7,3875.8,2.58005338]
[1760862999883,0.1288,3876.3,3875.9,3.87]
[1760863000086,0.1288,3876.3,3876.0,6.44997717]
[1760863000895,0.1288,3876.3,3876.2,2.57984624]
[1760863001194,0.2821,3876.9,3876.0,3.87]
[1760863001398,0.1288,3876.3,3876.0,3.87]
[1760863001987,0.1288,3876.1,3876.0,3.87]
[1760863003424,0.2286,3876.1,3876.0,3.87]
[1760863005484,0.2286,3876.1,3875.3,5.598]
[1760863005831,0.1288,3875.5,3875.3,5.598]
[1760863005981,0.1288,3875.5,3875.1,5.598]
[1760863006181,4.89083931,3875.9,3874.7,3.9988]
[1760863006480,0.1288,3875.0,3874.7,3.87]
[1760863006693,0.1288,3875.0,3874.8,2.58075994]
[1760863007181,0.1288,3875.0,3874.7,6.87892567]
[1760863007528,0.1288,3875.0,3874.8,3.52686501]
[1760863007683,0.1288,3875.0,3874.8,3.95496501]
[1760863008415,0.1288,3875.0,3874.9,2.58071176]
[1760863008713,0.1288,3875.0,3874.8,3.00886992]
[1760863009007,0.1288,3875.0,3874.7,6.45083307]
[1760863009174,0.1288,3875.0,3874.7,8.03289064]
[1760863009606,0.1288,3875.0,3874.8,3.00884966]
[1760863009782,0.1288,3875.0,3874.8,0.4281]
[1760863010805,0.1288,3875.0,3874.8,3.00885956]
[1760863011374,0.1288,3875.0,3874.9,3.87]
[1760863017412,0.1288,3875.0,3874.9,5.598]
[1760863018916,0.1288,3875.0,3874.9,3.87]
[1760863019304,3.493676,3875.0,3874.9,3.87]
[1760863019613,0.4881476,3875.0,3874.8,0.001]
[1760863019792,2.263876,3875.0,3874.8,0.001]
[1760863019997,0.1466,3875.1,3874.8,0.001]
[1760863020193,0.04497911,3875.4,3874.8,0.001]
[1760863020518,6.37,3879.3,3875.3,0.1288]
[1760863020519,4.89083931,3877.2,3875.3,0.1288]
[1760863020819,0.04497288,3876.1,3875.9,2.57998209]
[1760863021121,0.1288,3876.4,3875.9,0.25799821]
[1760863021309,0.1288,3876.4,3876.3,2.57977968]
[1760863021508,4.89083931,3876.7,3875.1,0.2152]
[1760863021819,0.52602727,3878.2,3875.2,0.4281]
[1760863021820,0.1008,3877.2,3875.2,0.4281]
[1760863022017,4.89083931,3877.1,3875.9,2.58000096]
[1760863022320,0.57843301,3876.9,3875.9,2.58000096]
[1760863022702,2.235218,3876.8,3875.8,3.00820195]
[1760863022897,2.235218,3876.8,3875.8,0.4281]
[1760863023122,2.030084,3876.8,3875.5,2.58030861]
[1760863023326,0.1008,3876.7,3875.5,2.58030861]
[1760863023620,0.1008,3876.7,3875.5,3.60620067]
[1760863024024,0.1008,3876.7,3875.5,4.03430067]
[1760863025426,0.62339822,3876.9,3875.5,1.02589206]
[1760863025620,0.22726521,3876.9,3875.6,0.4392]
[1760863025922,0.04496521,3876.9,3876.2,2.57981523]
[1760863026109,0.04496521,3876.9,3876.3,0.2153]
[1760863026426,0.04496521,3876.9,3876.4,0.4392]
[1760863026626,0.04496521,3876.9,3876.3,2.79502974]
[1760863026793,0.04496521,3876.9,3876.5,0.4392]
[1760863027335,0.04496521,3876.9,3876.6,0.4392]
[1760863027627,4.89283931,3877.4,3876.6,0.4392]
[1760863027847,4.89283931,3877.4,3877.3,0.2153]
[1760863027848,0.04695956,3877.4,3877.3,0.2153]
[1760863028130,0.04695956,3877.4,3877.3,7.92540547]
[1760863028424,0.002,3877.4,3877.3,9.43915975]
[1760863029536,0.002,3877.4,3877.3,9.43715975]
[1760863030926,0.002,3877.4,3877.3,10.07075975]
[1760863031631,0.002,3877.4,3877.3,6.62995975]
[1760863031925,0.002,3877.4,3877.3,9.56395975]
[1760863033534,0.002,3877.4,3877.3,10.19755975]
[1760863034648,0.002,3877.8,3877.3,10.19755975]
[1760863034649,1e-08,3877.8,3877.7,4.30684828]
[1760863034936,1e-08,3877.8,3877.7,12.6869969]
[1760863035094,1e-08,3877.8,3877.7,13.9125969]
[1760863036424,1e-08,3877.8,3877.7,10.3489969]
[1760863036629,1e-08,3877.8,3877.7,8.38615759]
[1760863037102,1e-08,3877.8,3877.7,4.99495759]
[1760863038644,1e-08,3877.8,3877.7,5.45815759]
[1760863039556,1e-08,3877.8,3877.7,5.32935759]
[1760863040672,1e-08,3877.8,3877.7,4.86615759]
[1760863040959,1e-08,3877.8,3877.0,7.47014858]
[1760863040960,0.09900001,3877.8,3876.1,4.3332]
[1760863041251,0.09900001,3877.8,3876.1,3.3872]
[1760863041252,0.099,3877.7,3876.1,3.3872]
[1760863041650,0.099,3877.7,3876.7,2.57950527]
[1760863042018,2.67058701,3877.8,3876.7,2.57950527]
[1760863042249,0.099,3877.6,3876.7,2.57950527]
[1760863042418,0.099,3877.6,3876.2,1.728]
[1760863042620,1e-08,3877.8,3876.4,2.57971313]
[1760863042850,1e-08,3877.8,3876.3,0.4632]
[1760863043030,0.099,3877.7,3876.3,0.4632]
[1760863043250,0.099,3877.7,3876.4,0.76951048]
[1760863043555,0.099,3877.7,3877.0,2.57924989]
[1760863044217,0.099,3877.7,3876.9,2.57936244]
[1760863044719,0.099,3877.7,3876.4,0.76951048]
[1760863045142,0.099,3877.7,3876.8,2.57943235]
[1760863045321,0.099,3877.6,3876.4,0.76951048]
[1760863045520,0.099,3877.6,3876.5,2.57959244]
[1760863045835,0.099,3877.6,3876.6,2.57957676]
[1760863046551,4.98983931,3877.6,3876.1,2.57991279]
[1760863046719,0.099,3877.6,3876.8,2.5793868]
[1760863047047,0.099,3877.6,3876.8,2.57939851]
[1760863047350,1e-08,3877.8,3876.8,2.57939851]
[1760863047351,1e-08,3877.8,3876.8,0.4632]
[1760863047551,1e-08,3877.8,3876.7,2.57949863]
[1760863047759,0.60649393,3877.7,3876.7,2.57949863]
[1760863047926,0.60649393,3877.7,3876.8,2.57943914]
[1760863048259,0.60649393,3877.7,3876.6,2.57958004]
[1760863048657,1e-08,3877.8,3877.2,2.57916051]
[1760863048853,1e-08,3877.8,3877.0,2.57925069]
[1760863049053,1e-08,3877.8,3876.9,2.57933145]
[1760863049459,0.1288,3877.2,3877.0,2.57930176]
[1760863050248,0.1288,3877.2,3877.0,3.04250176]
[1760863050560,0.1288,3877.2,3877.1,3.26534737]
[1760863051229,0.1288,3877.2,3877.1,3.84981633]
[1760863051637,0.1288,3877.4,3877.3,2.57907317]
[1760863051821,0.1288,3877.4,3876.6,0.001]
[1760863052022,0.099,3877.4,3876.6,0.001]
[1760863052457,0.099,3877.4,3876.6,2.58056034]
[1760863052659,0.099,3877.4,3876.7,3.87]
[1760863054846,4.89083931,3877.3,3876.7,3.87]
[1760863055052,0.59798393,3877.2,3876.7,3.87]
[1760863055263,0.099,3877.1,3876.7,3.87]
[1760863055464,0.49898393,3877.2,3876.7,3.87]
[1760863055771,0.49898393,3877.2,3876.6,0.001]
[1760863055772,4.89083931,3876.9,3876.6,0.001]
[1760863056274,0.099,3876.8,3876.6,0.001]
[1760863056566,0.099,3876.7,3876.6,0.001]
[1760863058645,0.59798393,3876.7,3876.6,0.001]
[1760863061259,3.73618593,3876.7,3876.6,0.001]
[1760863061571,0.59798393,3876.7,3876.6,0.001]
[1760863061778,2.75786693,3876.7,3876.6,0.001]
[1760863062390,4.42543793,3876.7,3876.6,0.001]
[1760863063074,2.98474893,3876.7,3876.6,0.001]
[1760863063292,0.49898393,3876.7,3876.6,0.001]
[1760863071056,12.54108693,3876.7,3876.6,0.001]
[1760863072071,14.30614793,3876.7,3876.6,0.001]
[1760863072480,14.20714793,3876.7,3876.6,0.001]
[1760863073187,2.22698393,3876.7,3876.6,0.001]
[1760863076696,5.76422593,3876.7,3876.6,0.001]
[1760863076898,4.73867893,3876.7,3876.6,0.001]
[1760863077403,2.22698393,3876.7,3876.6,0.001]
[1760863080178,0.49898393,3876.7,3876.6,0.001]
[1760863080378,0.04496217,3876.9,3876.6,0.001]
[1760863080999,4.89083931,3876.7,3876.6,0.001]
[1760863081202,12.37520531,3876.7,3876.6,0.001]
[1760863081400,7.35143931,3876.7,3876.6,0.001]
[1760863081602,14.14251486,3876.7,3876.6,0.001]
[1760863081799,11.44124486,3876.7,3876.6,0.001]
[1760863082001,9.50358831,3876.7,3876.6,0.001]
[1760863082205,12.25491731,3876.7,3876.6,0.001]
[1760863083092,12.25491731,3876.7,3876.2,0.001]
[1760863083093,0.6336,3876.4,3876.2,0.001]
[1760863083272,11.980164,3876.1,3875.8,0.001]
[1760863083475,11.980164,3875.7,3874.4,0.4627]
[1760863083695,7.07564431,3874.9,3874.4,0.4627]
[1760863083896,4.89083931,3875.3,3874.4,0.001]
[1760863084096,4.89083931,3876.0,3874.8,0.4627]
[1760863084297,4.89083931,3876.4,3874.8,0.4627]
[1760863084498,0.1448,3876.6,3875.9,0.2257]
[1760863084711,1e-08,3877.8,3875.9,0.2257]
[1760863084712,0.04496747,3876.7,3876.1,2.57985317]
[1760863084915,0.04496747,3876.7,3876.2,0.4546]
[1760863085099,4.98983931,3877.6,3876.2,0.4546]
[1760863085278,0.04496144,3876.7,3876.2,3.03443781]
[1760863085607,0.6336,3877.5,3876.3,3.59581601]
[1760863085811,4.209864,3877.5,3876.4,0.4546]
[1760863086018,4.89083931,3877.6,3876.4,0.4546]
[1760863086186,4.89083931,3877.6,3876.5,2.57964658]
[1760863086377,4.89083931,3877.6,3876.6,0.4546]
[1760863086577,4.89083931,3877.6,3876.7,2.5795135]
[1760863086777,4.89083931,3877.6,3876.8,0.4546]
[1760863087003,5.39833324,3877.6,3876.8,0.4546]
[1760863087224,0.50749393,3877.6,3876.8,0.4546]
[1760863087376,4.89083932,3877.8,3876.8,0.4546]
[1760863087576,4.89083932,3877.8,3875.9,0.2267]
[1760863087577,4.135816,3877.7,3875.9,0.2267]
[1760863087878,4.135816,3877.7,3876.0,3.03452645]
[1760863087879,5.582473,3877.3,3876.0,3.03452645]
[1760863088094,5.582473,3877.3,3876.1,3.03449854]
[1760863088295,5.582473,3877.3,3876.2,0.4546]
[1760863088501,0.77041463,3877.2,3876.2,0.4546]
[1760863088704,10.083897,3876.9,3876.2,0.4546]
[1760863088892,4.89083931,3876.6,3875.9,0.2267]
[1760863090926,0.6336,3876.8,3876.0,0.4589]
[1760863091721,0.1288,3876.0,3875.9,0.6856]
[1760863093043,0.04496601,3876.9,3875.9,0.6856]
[1760863093356,0.53404589,3876.8,3876.0,0.4589]
[1760863094151,0.53404589,3876.8,3876.0,3.03886086]
[1760863094360,0.53404589,3876.8,3876.1,0.4589]
[1760863094850,0.1288,3876.1,3875.9,0.2267]
[1760863095055,0.53404589,3876.8,3875.9,0.6856]
[1760863095243,0.58745048,3876.7,3875.9,0.6856]
[1760863096942,0.58745048,3876.7,3875.9,3.26563135]
[1760863097248,0.58745048,3876.7,3875.9,0.2267]
[1760863097454,0.58745048,3876.7,3876.0,0.4589]
[1760863097951,0.1288,3876.0,3875.9,0.2267]
[1760863098458,0.1288,3876.0,3875.9,0.001]
[1760863100968,12.841564,3876.0,3875.9,0.001]
[1760863101164,14.65977482,3876.0,3875.9,0.001]
[1760863101358,6.88624133,3876.0,3875.9,0.001]
[1760863101933,2.53564033,3876.0,3875.9,0.001]
[1760863102266,7.38985433,3876.0,3875.9,0.001]
[1760863102943,14.61480433,3876.0,3875.9,0.001]
[1760863103341,2.53564033,3876.0,3875.9,0.001]
[1760863103562,4.799324,3876.0,3875.9,0.001]
[1760863104479,4.89083931,3876.2,3875.9,0.001]
[1760863105471,2.3616,3876.4,3875.9,0.001]
[1760863105652,2.632525,3876.1,3875.9,0.001]
[1760863105838,0.6336,3876.2,3875.9,0.001]
[1760863106043,16.87100331,3876.0,3875.9,0.001]
[1760863106450,4.89083931,3876.0,3875.9,0.001]
[1760863107261,0.614236,3876.1,3875.9,0.001]
[1760863110985,0.614236,3876.1,3876.0,0.4589]
[1760863111147,0.4047082,3876.2,3876.0,0.4589]
[1760863111554,4.89083931,3876.4,3876.0,0.4589]
[1760863112277,0.1288,3876.0,3875.9,0.001]
[1760863113079,0.1288,3876.0,3875.9,0.4599]
[1760863114153,0.1288,3876.0,3875.9,0.001]
[1760863114348,0.1288,3876.0,3875.9,0.4599]
[1760863117901,0.1288,3876.0,3875.9,0.4406]
[1760863121590,0.1288,3876.0,3875.9,3.02064592]
[1760863121999,0.1308,3876.0,3875.9,3.02064592]
[1760863122597,0.1308,3876.0,3875.9,0.4406]
[1760863122924,0.002,3876.0,3875.9,3.45180592]
[1760863126299,0.002,3876.0,3875.9,0.001]
[1760863132312,4.89283931,3876.0,3875.9,0.001]
[1760863132539,4.99183931,3876.0,3875.9,0.001]
[1760863133121,4.89283931,3876.0,3875.9,0.001]
[1760863133645,0.002,3876.0,3875.9,0.001]
[1760863135015,0.101,3876.0,3875.9,0.001]
[1760863135212,0.002,3876.0,3875.9,0.001]
[1760863141845,5.62543931,3876.0,3875.9,0.001]
[1760863142046,19.36616364,3876.0,3875.9,0.001]
[1760863142459,13.96069664,3876.0,3875.9,0.001]
[1760863142830,15.75183564,3876.0,3875.9,0.001]
[1760863143465,9.80211264,3876.0,3875.9,0.001]
[1760863143658,8.04155231,3876.0,3875.9,0.001]
[1760863143844,15.08675431,3876.0,3875.9,0.001]
[1760863144046,16.81475431,3876.0,3875.9,0.001]
[1760863144236,13.84228335,3875.9,3875.8,0.001]
[1760863144435,17.30112927,3875.9,3875.8,0.001]
[1760863144862,14.56040963,3875.6,3875.5,0.001]
[1760863145061,19.45124894,3875.6,3875.5,0.001]
[1760863145280,19.55074894,3875.6,3875.5,0.001]
[1760863145483,20.18434894,3875.6,3875.5,0.001]
[1760863145885,21.91234894,3875.6,3875.5,0.001]
[1760863146056,24.54482847,3875.6,3875.5,0.001]
[1760863146457,24.58980898,3875.6,3875.5,0.001]
[1760863146657,24.58980898,3875.6,3874.6,0.001]
[1760863146658,16.92234256,3875.1,3874.6,0.001]
[1760863146870,21.81318187,3875.1,3874.6,0.001]
[1760863147072,21.91268187,3875.1,3874.6,0.001]
[1760863147271,24.36200125,3875.1,3874.6,0.001]
[1760863147988,19.67380069,3875.1,3874.6,0.001]
[1760863148558,22.25437925,3875.1,3874.6,0.001]
[1760863148973,24.40699121,3875.1,3874.6,0.001]
[1760863149402,24.81186079,3875.1,3874.6,0.001]
[1760863151262,4.94231176,3874.9,3874.6,0.001]
[1760863151486,19.55495529,3874.9,3874.6,0.001]
[1760863151705,19.65445529,3874.9,3874.6,0.001]
[1760863151994,19.65445529,3874.9,3873.2,0.4558]
[1760863151995,0.6336,3873.9,3873.2,0.4558]
[1760863152205,0.6336,3873.5,3873.2,0.4558]
[1760863152413,7.916003,3873.4,3873.2,0.6904]
[1760863152626,4.042411,3873.4,3873.2,0.2346]
[1760863152791,3.747127,3873.4,3873.3,0.4558]
[1760863153391,4.89083931,3873.6,3873.3,0.4558]
[1760863153590,0.04499903,3873.8,3873.3,0.4558]
[1760863154818,9.769799,3873.7,3873.4,0.4558]
[1760863154983,1.47056373,3873.7,3873.5,0.4558]
[1760863155178,8.367832,3873.7,3873.2,0.2346]
[1760863155382,3.4474,3873.7,3873.3,0.4558]
[1760863155686,3.4474,3873.7,3873.2,0.2346]
[1760863155687,2.871265,3873.7,3873.4,0.4558]
[1760863155883,2.871265,3873.7,3873.5,0.4558]
[1760863156084,2.434364,3873.7,3873.6,0.4558]
[1760863157725,3.17138423,3873.7,3873.6,0.4558]
[1760863158594,3.17138423,3873.7,3873.2,0.2346]
[1760863158800,3.17138423,3873.7,3873.2,0.6904]
[1760863158801,5.619319,3873.6,3873.2,0.6904]
[1760863159000,0.6336,3873.6,3873.2,0.6904]
[1760863159207,0.6336,3873.6,3873.3,0.4558]
[1760863159415,4.93583834,3873.8,3873.0,0.2329]
[1760863159416,5.52443931,3873.4,3873.0,0.2329]
[1760863159705,0.6336,3873.3,3872.7,0.6904]
[1760863159920,0.6336,3872.9,3872.7,0.2346]
[1760863160703,0.6336,3872.9,3872.8,0.001]
[1760863160905,1.18604393,3872.9,3872.8,0.001]
[1760863161900,1.18604393,3872.9,3872.8,0.4568]
[1760863162302,1.18604393,3872.9,3872.8,0.001]
[1760863162947,3.18930993,3872.9,3872.8,0.001]
[1760863164009,13.16620793,3872.9,3872.8,0.001]
[1760863164721,13.26520793,3872.9,3872.8,0.001]
[1760863164914,13.31022029,3872.9,3872.8,0.001]
[1760863165745,13.26520793,3872.9,3872.8,0.001]
[1760863165945,1.28504393,3872.9,3872.8,0.001]
[1760863166262,17.57525239,3872.9,3872.8,0.001]
[1760863166555,17.57525239,3872.9,3871.8,0.4558]
[1760863166556,11.980164,3872.2,3871.3,0.4558]
[1760863166713,4.89083931,3871.5,3871.0,0.6904]
[1760863166904,5.525567,3871.4,3871.1,0.4558]
[1760863167103,5.525567,3871.4,3871.0,0.2346]
[1760863167104,5.525567,3871.4,3871.2,0.4558]
[1760863167309,2.964945,3871.4,3871.3,0.4558]
[1760863167506,4.046945,3871.4,3871.0,0.2346]
[1760863167712,4.046945,3871.4,3871.1,0.4558]
[1760863168028,3.356945,3871.4,3871.2,0.4558]
[1760863168346,2.58246049,3872.3,3871.0,0.2346]
[1760863168347,0.6336,3871.8,3871.3,0.4558]
[1760863168553,0.04502331,3871.5,3871.3,0.4558]
[1760863168725,0.04502331,3871.5,3871.4,0.4558]
[1760863170229,0.4501779,3871.5,3871.4,0.4558]
[1760863170751,0.4501779,3871.5,3871.4,3.03884489]
[1760863171148,0.6336,3872.4,3871.4,3.03884489]
[1760863171317,2.375166,3872.3,3871.5,2.58297199]
[1760863171520,2.375166,3872.3,3871.6,0.4558]
[1760863171720,1.77301662,3872.5,3872.2,0.2346]
[1760863171721,0.04501662,3872.5,3872.2,0.2346]
[1760863171923,0.04501662,3872.5,3872.3,0.4558]
[1760863172414,0.04501662,3872.5,3872.4,0.4558]
[1760863174347,0.04501662,3872.5,3872.2,0.2346]
[1760863174515,0.04501662,3872.5,3872.3,0.4558]
[1760863177163,0.1288,3872.3,3872.2,0.2346]
[1760863177362,0.1288,3872.3,3871.6,0.4413]
[1760863177577,0.1288,3872.0,3871.6,0.4413]
[1760863177788,0.1288,3871.6,3871.5,3.87]
[1760863177954,0.1288,3871.6,3871.2,1.728]
[1760863178156,0.1288,3871.4,3871.3,0.84157796]
[1760863178467,0.1288,3871.4,3871.3,1.28287796]
[1760863178848,0.1288,3871.4,3871.3,0.4413]
[1760863179259,0.1288,3871.4,3871.2,1.728]
[1760863179472,0.1288,3871.4,3871.3,0.4413]
[1760863179678,4.89083931,3872.1,3871.3,0.4413]
[1760863179679,0.6336,3872.4,3871.3,0.4413]
[1760863179843,0.45009383,3872.5,3872.3,0.2244]
[1760863180164,0.1288,3872.3,3872.0,0.6657]
[1760863180370,0.45009383,3872.5,3872.0,0.6657]
[1760863180567,0.45009383,3872.5,3872.0,0.2244]
[1760863180878,0.1288,3872.0,3871.4,0.4413]
[1760863181078,11.980164,3872.2,3871.1,3.87]
[1760863181283,11.980164,3872.2,3871.2,0.4413]
[1760863182179,2.644817,3872.0,3871.2,0.4413]
[1760863182418,2.896383,3872.0,3871.2,0.4413]
[1760863182706,0.6336,3872.2,3871.2,0.4413]
[1760863182895,0.57910993,3872.5,3871.2,0.94002094]
[1760863183099,0.1288,3871.3,3871.2,2.58317834]
[1760863183406,0.04501662,3872.5,3871.2,1.728]
[1760863183615,0.04501662,3872.5,3872.4,0.2244]
[1760863184010,0.6336,3873.0,3872.4,0.2244]
[1760863184205,4.89083931,3873.1,3872.4,0.2244]
[1760863184206,0.55244393,3872.9,3872.4,0.2244]
[1760863184509,0.55244393,3872.9,3872.5,0.4413]
[1760863184807,0.6786106,3873.0,3872.5,0.4413]
[1760863185307,0.6786106,3873.0,3872.6,0.4413]
[1760863185510,0.6786106,3873.0,3872.4,0.2244]
[1760863185674,0.0450106,3873.0,3872.6,0.4413]
[1760863185994,0.1457,3872.9,3872.0,0.6657]
[1760863186199,4.89083931,3872.6,3872.0,0.6657]
[1760863186782,0.50815499,3872.8,3871.5,0.4413]
[1760863186783,4.89083931,3872.2,3871.5,0.4413]
[1760863186982,0.6336,3872.1,3871.5,0.4413]
[1760863188790,0.6336,3872.1,3871.0,0.2346]
[1760863189114,0.6336,3872.1,3871.2,0.4413]
[1760863189425,5.011852,3872.0,3871.0,0.2346]
[1760863189588,5.125586,3871.9,3871.0,0.2346]
[1760863189786,5.125586,3871.9,3870.5,1.728]
[1760863190014,4.89083931,3871.0,3870.1,0.4413]
[1760863190241,0.6336,3871.3,3870.1,0.4413]
[1760863190545,1.728,3871.7,3870.1,0.4413]
[1760863190708,0.66188393,3871.6,3871.2,0.2244]
[1760863191105,0.45022643,3871.8,3871.3,0.4413]
[1760863191308,0.45022643,3871.8,3871.4,0.4413]
[1760863191507,0.40520166,3871.8,3871.5,0.4413]
[1760863191707,0.40520166,3871.8,3871.6,0.4413]
[1760863191945,0.40520166,3871.8,3871.3,2.58311161]
[1760863192143,0.40520166,3871.8,3871.3,0.53907458]
[1760863192358,0.40520166,3871.8,3871.4,0.4413]
[1760863192712,0.40520166,3871.8,3871.5,0.4413]
[1760863192941,0.40520166,3871.8,3871.2,2.80757792]
[1760863192942,0.40520166,3871.8,3871.6,0.4413]
[1760863193664,0.1288,3871.6,3871.3,2.58311125]
[1760863193846,0.1288,3871.6,3871.4,0.53907527]
[1760863194226,0.1288,3871.6,3871.5,3.02427817]
[1760863194533,0.1288,3871.6,3871.5,0.4413]
[1760863194728,0.1288,3871.6,3871.5,3.02427817]
[1760863195133,0.1288,3871.6,3871.5,0.4413]
[1760863196342,0.1288,3871.6,3871.2,0.2244]
[1760863196530,0.04501725,3872.3,3871.5,0.4413]
[1760863197557,0.40510326,3872.2,3871.5,0.4413]
[1760863198536,0.1288,3871.6,3871.5,3.02421599]
[1760863198737,0.1288,3871.6,3871.5,0.4413]
[1760863198947,0.1288,3871.6,3871.5,3.02427817]
[1760863199566,0.1288,3871.6,3871.5,0.4413]
[1760863200274,0.1288,3871.6,3871.4,3.87]
[1760863201078,0.1288,3871.6,3871.5,0.4413]
[1760863202134,0.1288,3871.6,3871.4,3.87]
[1760863203660,0.1288,3871.6,3871.2,0.2244]
[1760863203851,2.506596,3872.1,3871.2,0.6657]
[1760863204166,0.54399598,3872.1,3871.2,0.6657]
[1760863204737,5.824405,3872.0,3871.2,0.6657]
[1760863206575,4.746777,3872.0,3871.2,0.6657]
[1760863207684,0.40514221,3872.0,3871.2,0.2244]
[1760863207840,0.40514221,3872.0,3871.3,0.4723]
[1760863208039,0.1288,3871.5,3871.3,3.05536198]
[1760863208268,0.1288,3871.5,3871.4,0.4723]
[1760863208575,0.1288,3871.5,3871.4,3.05534489]
[1760863208869,0.04501725,3872.3,3872.2,2.58251123]
[1760863209078,0.04501725,3872.3,3872.2,2.84076235]
[1760863209261,0.1288,3872.4,3872.3,2.58244454]
[1760863209460,0.002,3873.2,3872.3,2.58244454]
[1760863209461,0.1308,3872.8,3872.7,2.5821778]
[1760863209767,0.1308,3872.8,3872.4,0.4397]
[1760863209968,0.1308,3872.8,3872.5,2.58231116]
[1760863210171,0.1308,3872.8,3872.6,0.4397]
[1760863210475,0.1308,3872.8,3872.6,3.02192316]
[1760863210668,0.1308,3872.8,3872.7,0.4397]
[1760863211442,0.002,3872.8,3872.7,3.58230785]
[1760863213062,0.002,3872.8,3872.7,5.31030785]
[1760863213264,0.002,3872.8,3872.7,5.43910785]
[1760863213642,0.002,3872.8,3872.7,6.07270785]
[1760863213850,0.002,3872.8,3872.7,6.4796598]
[1760863215471,1e-08,3873.2,3873.1,3.21551113]
[1760863215685,1e-08,3873.2,3873.1,13.60550161]
[1760863215840,1e-08,3873.2,3873.1,13.73430161]
[1760863216043,1e-08,3873.2,3873.1,14.17400161]
[1760863219484,0.002,3873.6,3873.5,9.83408381]
[1760863219680,0.002,3873.6,3873.5,12.75888381]